Workbook

Sheet Stratus Corp
M1: 12 | N1: sazba 1 | O1: 9.136 | P1: < 50 0000 | R1: 48
N2: sazba 2 | O2: 8.92 | P2: 50 000 - 149 999,99 | S2: sazba 1 | T2: 2.675 | U2: < 50 0000
N3: sazba 3 | O3: 8.819 | P3: 150 000 - 349 999,99 | S3: sazba 2 | T3: 2.617 | U3: 50 000 - 149 999,99
C4: Indikativní nabídka financování společností | N4: sazba 4 | O4: 8.765 | P4: 350 000 - 549 999 | S4: sazba 3 | T4: 2.588 | U4: 150 000 - 349 999,99
D5: GRENKELEASING s.r.o. | N5: sazba 5 | O5: 8.732 | P5: 550 000 - 749 999 | S5: sazba 4 | T5: 2.572 | U5: 350 000 - 549 999 | AM5: 0
N6: sazba 6 | P6: 750 000 - 1 499 999 | S6: sazba 5 | T6: 2.557 | U6: 550 000 - 749 999 | AI6: inkasem* | AJ6: kvartálně* | AM6: 0.1
N7: sazba 7 | P7: >1 500 000 | S7: sazba 6 | U7: 750 000 - 1 499 999 | AI7: převodem | AJ7: měsíčně | AM7: 0.15
C8: Zákazník: | D8: Stratus Corp | J8: Provize | S8: sazba 7 | U8: >1 500 000 | AM8: 0.2
C9: Předmět leasingu: | D9: Pila | J9: 0 | AM9: 0.25
M10: 24 | N10: sazba 1 | O10: 4.714 | P10: < 50 0000 | R10: 60
C11: Pořizovací cena bez DPH | E11: Požadovaná akontace | N11: sazba 2 | O11: 4.602 | P11: 50 000 - 149 999,99 | S11: sazba 1 | T11: 2.208 | U11: < 50 0000
C12: 250000 | E12: 0 | N12: sazba 3 | O12: 4.578 | P12: 150 000 - 349 999,99 | S12: sazba 2 | T12: 2.158 | U12: 50 000 - 149 999,99
N13: sazba 4 | O13: 4.565 | P13: 350 000 - 549 999 | S13: sazba 3 | T13: 2.134 | U13: 150 000 - 349 999,99
C14: Classic leasing | N14: sazba 5 | O14: 4.558 | P14: 550 000 - 749 999 | S14: sazba 4 | T14: 2.121 | U14: 350 000 - 549 999
C15: Délka financování | D15: Měsíční splátka | E15: Indikativní zůstatková hodnota | L15: 2023-01-24 | N15: sazba 6 | P15: 750 000 - 1 499 999 | S15: sazba 5 | T15: 2.108 | U15: 550 000 - 749 999
C16: 12 | D16: =IF($D$25="převodem",R28*1.015,R28) -> 22047.5 | E16: =C12*10% -> 25000 | I16: =(D16*C16)+E16 -> 289570 | J16: =I16/C12 -> 1.15828 | K16: =J16+E12 -> 1.15828 | L16: 0.081 | N16: sazba 7 | P16: >1 500 000 | S16: sazba 6 | U16: 750 000 - 1 499 999
C17: 24 | D17: =IF($D$25="převodem",R29*1.015,R29) -> 11445 | E17: =C12*8% -> 20000 | I17: =(D17*C17)+E17 -> 294680 | J17: =I17/C12 -> 1.17872 | K17: =J17+E12 -> 1.17872 | L17: 0.081 | S17: sazba 7 | U17: >1 500 000
C18: 36 | D18: =IF($D$25="převodem",R30*1.015,R30) -> 8222.5 | E18: =C12*6% -> 15000 | I18: =(D18*C18)+E18 -> 311010 | J18: =I18/C12 -> 1.24404 | K18: =J18+E12 -> 1.24404 | L18: 0.0776 | M18: 36 | N18: sazba 1 | O18: 3.404 | P18: < 50 0000
C19: 48 | D19: =IF($D$25="převodem",R31*1.015,R31) -> 6470 | E19: =C12*5% -> 12500 | I19: =(D19*C19)+E19 -> 323060 | J19: =I19/C12 -> 1.29224 | K19: =J19+E12 -> 1.29224 | L19: 0.075 | N19: sazba 2 | O19: 3.326 | P19: 50 000 - 149 999,99
C20: 60 | D20: =IF($D$25="převodem",R32*1.015,R32) -> 5335 | E20: =C12*4% -> 10000 | I20: =(D20*C20)+E20 -> 330100 | J20: =I20/C12 -> 1.3204 | K20: =J20+E12 -> 1.3204 | L20: 0.0735 | N20: sazba 3 | O20: 3.289 | P20: 150 000 - 349 999,99
N21: sazba 4 | O21: 3.268 | P21: 350 000 - 549 999
C22: Výše akontace | D22: =C12*E12 -> 0 | N22: sazba 5 | O22: 3.249 | P22: 550 000 - 749 999
C23: Poplatek za sjednání | D23: 0 | N23: sazba 6 | P23: 750 000 - 1 499 999
C24: Frekvence plateb | D24: měsíčně | N24: sazba 7 | P24: >1 500 000
C25: Způsob úhrady | D25: inkasem*
R27: splátka s provizí
C28: *Při změně způsobu platby dochází k překalkulování splátky | J28: Provize | K28: Navýšení koef. | Q28: =IF(P30<49999.99,P30*O1/100,IF(AND(P30>=50000,P30<150000),P30*O2/100,IF(AND(P30>=150000,P30<350000),P30*O3/100,IF(AND(P30>=350000,P30<550000),P30*O4/100,IF(AND(P30>=550000,P30<750000),P30*O5/100,IF(AND(P30>=750000,P30<1500000),P30*O6/100,P30*O7/100)))))) -> 22047.5 | R28: =IF($J$9=0%,Q28,IF($J$9=1%,Q28*1.01,IF($J$9=2%,Q28*1.02,IF($J$9=3%,Q28*1.03,IF($J$9=4%,Q28*1.04))))) -> 22047.5
J29: 0.01 | K29: 0.0097 | Q29: =IF(P30<49999.99,P30*O10/100,IF(AND(P30>=50000,P30<150000),P30*O11/100,IF(AND(P30>=150000,P30<350000),P30*O12/100,IF(AND(P30>=350000,P30<550000),P30*O13/100,IF(AND(P30>=550000,P30<750000),P30*O14/100,IF(AND(P30>=750000,P30<1500000),P30*O15/100,P30*O16/100)))))) -> 11445 | R29: =IF($J$9=0%,Q29,IF($J$9=1%,Q29*1.01,IF($J$9=2%,Q29*1.02,IF($J$9=3%,Q29*1.03,IF($J$9=4%,Q29*1.04))))) -> 11445
C30: Sjednaná doba leasingu začíná běžet prvním dnem kalendářního měsíce následujícího po předání | J30: 0.02 | K30: 0.0194 | O30: financováno | P30: =P31*(1+(0.0275*E12)) -> 250000 | Q30: =IF(P30<49999.99,P30*O18/100,IF(AND(P30>=50000,P30<150000),P30*O19/100,IF(AND(P30>=150000,P30<350000),P30*O20/100,IF(AND(P30>=350000,P30<550000),P30*O21/100,IF(AND(P30>=550000,P30<750000),P30*O22/100,IF(AND(P30>=750000,P30<1500000),P30*O23/100,P30*O24/100)))))) -> 8222.5 | R30: 8222.5
C31: předmětu leasingu. | J31: 0.03 | K31: 0.0289 | O31: Mezisoučet | P31: =C12*(1-E12) -> 250000 | Q31: =IF(P30<49999.99,P30*T2/100,IF(AND(P30>=50000,P30<150000),P30*T3/100,IF(AND(P30>=150000,P30<350000),P30*T4/100,IF(AND(P30>=350000,P30<550000),P30*T5/100,IF(AND(P30>=550000,P30<750000),P30*T6/100,IF(AND(P30>=750000,P30<1500000),P30*T7/100,P30*T8/100)))))) -> 6470 | R31: 6470
C32: Pokud dojde k předání předmětu leasingu před začátkem běhu sjednané doby, účtuje se za každý den | J32: 0.04 | K32: 0.0387 | Q32: =IF(P30<49999.99,P30*T11/100,IF(AND(P30>=50000,P30<150000),P30*T12/100,IF(AND(P30>=150000,P30<350000),P30*T13/100,IF(AND(P30>=350000,P30<550000),P30*T14/100,IF(AND(P30>=550000,P30<750000),P30*T15/100,IF(AND(P30>=750000,P30<1500000),P30*T16/100,P30*T17/100)))))) -> 5335 | R32: 5335
C33: tohoto přechodného období poplatek za užívání předmětu leasingu ve výši 1/30 měsíční leasingové splátky
C35: Povinné pojistné není součástí splátek, platba 1x ročně za kalendářní rok.
C36: Výše ročního pojistného
C37: =IF(C12<100000,1300,C12/100*1.1) -> 2750
C39: Ukončení financování:
C40: Na konci základní leasingové doby má zákazník na výběr ze tří možností:
C41: 1. Vrátit předmět leasingu společnosti GRENKELEASING s.r.o.
C42: 2. Odkoupit zařízení
C43: U těchto dvou variant je třeba vypovědět smlouvu 3 měsíce před koncem leasingové doby
C44: 3. Pokračovat ve stávajícím nájmu (není vyžadována žádná akce)
C46: Všechny ceny jsou uvedeny bez DPH. DPH je účtováno s každou splátkou a s odkupem.
C47: Datum vyhotovení: | D47: =TODAY() -> 2023-03-24 | E47: Jméno obchodníka: | F47: Michal Woloszcuk
E48: Email obchodníka: | F48: mwoloszcuk@grenke.cz
C51: Platnost kalkulace je 30 dnů od data vyhotovení
